fUSD/lending_fUSD_20250812
["ID","MTS","AMOUNT","RATE_DAILY","PERIOD"]
[378745067,1754999452843,-500.0,0.00041095,30]
[378745069,1754999452852,-400.0,0.00041095,30]
[378745072,1754999452862,-500.0,0.00041095,30]
[378745074,1754999452875,-506.31,0.00041095,30]
[378745076,1754999452884,-500.0,0.00041095,30]
[378745078,1754999452893,-500.0,0.00041095,30]
[378745080,1754999452902,-400.0,0.00041095,30]
[378745082,1754999452911,-310.4,0.00041095,30]
[378745084,1754999452921,-400.0,0.00041095,30]
[378745086,1754999452930,-400.0,0.00041095,30]
[378745088,1754999452939,-151.0,0.00041095,30]
[378745090,1754999452948,-151.0,0.00041095,30]
[378745092,1754999452958,-400.0,0.00041095,30]
[378745094,1754999452967,-400.0,0.00041095,30]
[378745096,1754999452976,-400.0,0.00041095,30]
[378745097,1754999452986,-400.0,0.00041095,30]
[378745100,1754999452995,-400.0,0.00041095,30]
[378745102,1754999453005,-400.0,0.00041095,30]
[378745103,1754999453015,-400.0,0.00041095,30]
[378745106,1754999453024,-400.0,0.00041095,30]
[378745108,1754999453036,-400.0,0.00041095,30]
[378745110,1754999453046,-400.0,0.00041095,30]
[378745112,1754999453055,-561.31,0.00041095,30]
[378745114,1754999453064,-400.0,0.00041095,30]
[378745116,1754999453074,-400.0,0.00041095,30]
[378745118,1754999453083,-400.0,0.00041095,30]
[378745120,1754999453093,-400.0,0.00041095,30]
[378745122,1754999453102,-1618.01,0.00041095,30]
[378745124,1754999453112,-473.62,0.00041095,30]
[378745126,1754999453121,-400.0,0.00041095,30]
[378745128,1754999453131,-400.0,0.00041095,30]
[378745130,1754999453140,-400.0,0.00041095,30]
[378745131,1754999453150,-400.0,0.00041095,30]
[378745133,1754999453159,-400.0,0.00041095,30]
[378745135,1754999453169,-400.0,0.00041095,30]
[378745137,1754999453179,-400.0,0.00041095,30]
[378745139,1754999453188,-400.0,0.00041095,30]
[378745141,1754999453197,-400.0,0.00041095,30]
[378745144,1754999453207,-400.0,0.00041095,30]
[378745146,1754999453216,-400.0,0.00041095,30]
[378745147,1754999453225,-400.0,0.00041095,30]
[378745149,1754999453234,-400.0,0.00041095,30]
[378745152,1754999453244,-400.0,0.00041095,30]
[378745153,1754999453254,-400.0,0.00041095,30]
[378745155,1754999453263,-494.13,0.00041095,30]
[378745157,1754999453273,-400.0,0.00041095,30]
[378745159,1754999453286,-400.0,0.00041095,30]
[378745161,1754999453295,-400.0,0.00041095,30]
[378745163,1754999453305,-400.0,0.00041095,30]
[378745166,1754999453315,-437.72,0.00041095,30]
[378745167,1754999453324,-500.0,0.00041095,30]
[378745169,1754999453333,-400.0,0.00041095,30]
[378745171,1754999453342,-713.43,0.00041095,30]
[378745173,1754999453351,-400.0,0.00041095,30]
[378745175,1754999453360,-400.0,0.00041095,30]
[378745177,1754999453370,-400.0,0.00041095,30]
[378745179,1754999453379,-400.0,0.00041095,30]
[378745182,1754999453388,-400.0,0.00041095,30]
[378745184,1754999453397,-400.0,0.00041095,30]
[378745186,1754999453407,-400.0,0.00041095,30]
[378745188,1754999453416,-400.0,0.00041095,30]
[378745190,1754999453425,-400.0,0.00041095,30]
[378745192,1754999453434,-335.55028906,0.00041095,30]
[378745194,1754999453444,-400.0,0.00041095,30]
[378745196,1754999453454,-400.0,0.00041095,30]
[378745197,1754999453463,-400.0,0.00041095,30]
[378745199,1754999453473,-400.0,0.00041095,30]
[378745201,1754999453483,-400.0,0.00041095,30]
[378745203,1754999453493,-400.0,0.00041095,30]
[378745205,1754999453502,-400.0,0.00041095,30]
[378745207,1754999453511,-400.0,0.00041095,30]
[378745209,1754999453521,-400.0,0.00041095,30]
[378745212,1754999453532,-799.29,0.00041095,30]
[378745213,1754999453541,-151.0,0.00041095,30]
[378745216,1754999453551,-400.0,0.00041095,30]
[378745218,1754999453560,-400.0,0.00041095,30]
[378745220,1754999453570,-400.0,0.00041095,30]
[378745222,1754999453580,-400.0,0.00041095,30]
[378745224,1754999453590,-402.85740176,0.00041095,30]
[378745226,1754999453599,-400.0,0.00041095,30]
[378745228,1754999453610,-400.0,0.00041095,30]
[378745230,1754999453619,-567.92,0.00041095,30]
[378745231,1754999453628,-400.0,0.00041095,30]
[378745234,1754999453638,-151.0,0.00041095,30]
[378745236,1754999453647,-400.55391641,0.00041095,30]
[378745238,1754999453657,-400.0,0.00041095,30]
[378745240,1754999453666,-400.0,0.00041095,30]
[378745242,1754999453675,-500.0,0.00041095,30]
[378745244,1754999453685,-500.0,0.00041095,30]
[378745246,1754999453694,-400.0,0.00041095,30]
[378745248,1754999453704,-500.0,0.00041095,30]
[378745250,1754999453714,-400.0,0.00041095,30]
[378745252,1754999453724,-500.0,0.00041095,30]
[378745254,1754999453733,-500.0,0.00041095,30]
[378745256,1754999453743,-500.0,0.00041095,30]
[378745258,1754999453753,-400.0,0.00041095,30]
[378745260,1754999453763,-500.0,0.00041095,30]
[378745262,1754999453771,-400.0,0.00041095,30]
[378745264,1754999453781,-500.0,0.00041095,30]
[378745266,1754999453790,-500.0,0.00041095,30]
[378745268,1754999453799,-400.0,0.00041095,30]
[378745270,1754999453808,-538.28,0.00041095,30]
[378745272,1754999453818,-400.0,0.00041095,30]
[378745274,1754999453827,-400.0,0.00041095,30]
[378745276,1754999453836,-640.83,0.00041095,30]
[378745277,1754999453846,-513.09669443,0.00041095,30]
[378745280,1754999453857,-727.47,0.00041095,30]
[378745282,1754999453867,-400.0,0.00041095,30]
[378745283,1754999453876,-400.0,0.00041095,30]
[378745285,1754999453885,-727.47,0.00041095,30]
[378745286,1754999453895,-727.47,0.00041095,30]
[378745287,1754999453905,-400.0,0.00041095,30]
[378745288,1754999453914,-727.47,0.00041095,30]
[378745289,1754999453923,-400.0,0.00041095,30]
[378745290,1754999453933,-727.47,0.00041095,30]
[378745291,1754999453943,-2563.05,0.00041095,30]
[378745292,1754999453952,-727.47,0.00041095,30]
[378745293,1754999453963,-400.0,0.00041095,30]
[378745294,1754999453973,-400.0,0.00041095,30]
[378745295,1754999453982,-537.329149,0.00041095,30]
[378745296,1754999453992,-584.37,0.00041095,30]
[378745297,1754999454001,-537.329149,0.00041095,30]
[378745298,1754999454010,-400.0,0.00041095,30]
[378745299,1754999454020,-627.53,0.00041095,30]
[378745300,1754999454029,-400.0,0.00041095,30]
[378745301,1754999454039,-400.42355987,0.00041095,30]
[378745302,1754999454048,-400.0,0.00041095,30]
[378745303,1754999454058,-537.329149,0.00041095,30]
[378745304,1754999454067,-537.329149,0.00041095,30]
[378745305,1754999454076,-400.0,0.00041095,30]
[378745306,1754999454085,-400.0,0.00041095,30]
[378745307,1754999454096,-400.0,0.00041095,30]
[378745308,1754999454106,-400.0,0.00041095,30]
[378745309,1754999454117,-421.28,0.00041095,30]
[378745310,1754999454126,-410.52,0.00041095,30]
[378745311,1754999454135,-400.0,0.00041095,30]
[378745312,1754999454146,-400.0,0.00041095,30]
[378745313,1754999454155,-400.0,0.00041095,30]
[378745314,1754999454165,-400.0,0.00041095,30]
[378745315,1754999454175,-400.0,0.00041095,30]
[378745316,1754999454185,-451.33818077,0.00041095,30]
[378745317,1754999454195,-400.0,0.00041095,30]
[378745318,1754999454205,-400.0,0.00041095,30]
[378745319,1754999454214,-421.28,0.00041095,30]
[378745320,1754999454224,-601.91,0.00041095,30]
[378745321,1754999454234,-400.0,0.00041095,30]
[378745322,1754999454243,-753.81,0.00041095,30]
[378745323,1754999454253,-402.6435556,0.00041095,16]
[378745324,1754999454262,-492.98,0.00041095,30]
[378745325,1754999454271,-400.0,0.00041095,30]
[378745326,1754999454284,-402.18472483,0.00041095,30]
[378745327,1754999454293,-400.0,0.00041095,30]
[378745328,1754999454302,-400.0,0.00041095,30]
[378745329,1754999454312,-469.84,0.00041095,30]
[378745330,1754999454322,-400.0,0.00041095,30]
[378745331,1754999454332,-400.0,0.00041095,30]
[378745332,1754999454341,-403.59996234,0.00041095,30]
[378745333,1754999454350,-400.0,0.00041095,30]
[378745334,1754999454363,-500.0,0.00041095,30]
[378745335,1754999454373,-500.0,0.00041095,30]
[378745336,1754999454383,-605.43,0.00041095,30]
[378745337,1754999454392,-500.0,0.00041095,30]
[378745338,1754999454401,-789.29,0.00041095,30]
[378745339,1754999454410,-500.0,0.00041095,30]
[378745340,1754999454419,-400.0,0.00041095,30]
[378745341,1754999454429,-500.0,0.00041095,30]
[378745342,1754999454439,-500.0,0.00041095,30]
[378745343,1754999454450,-500.0,0.00041095,30]
[378745344,1754999454459,-1179.7,0.00041095,30]
[378745345,1754999454468,-500.0,0.00041095,30]
[378745346,1754999454477,-400.0,0.00041095,30]
[378745347,1754999454487,-400.0,0.00041095,30]
[378745348,1754999454497,-400.0,0.00041095,30]
[378745349,1754999454506,-400.0,0.00041095,30]
[378745350,1754999454515,-400.0,0.00041095,30]
[378745351,1754999454525,-404.93675672,0.00041095,30]
[378745352,1754999454534,-400.0,0.00041095,30]
[378745353,1754999454544,-400.0,0.00041095,30]
[378745354,1754999454553,-400.0,0.00041095,30]
[378745355,1754999454563,-400.0,0.00041095,30]
[378745356,1754999454572,-400.0,0.00041095,30]
[378745357,1754999454581,-400.0,0.00041095,30]
[378745358,1754999454591,-400.0,0.00041095,30]
[378745359,1754999454601,-400.0,0.00041095,30]
[378745360,1754999454610,-400.0,0.00041095,30]
[378745361,1754999454619,-400.0,0.00041095,30]
[378745362,1754999454629,-400.0,0.00041095,30]
[378745363,1754999454639,-682.27,0.00041095,30]
[378745364,1754999454648,-400.0,0.00041095,30]
[378745365,1754999454659,-400.0,0.00041095,30]
[378745366,1754999454668,-400.0,0.00041095,30]
[378745367,1754999454677,-400.0,0.00041095,30]
[378745368,1754999454803,-400.0,0.00041095,30]
[378745369,1754999454813,-400.0,0.00041095,30]
[378745370,1754999454823,-400.0,0.00041095,30]
[378745371,1754999454833,-459.29,0.00041095,30]
[378745372,1754999454842,-1000.0,0.00041095,30]
[378745373,1754999454852,-682.47,0.00041095,30]
[378745374,1754999454861,-400.0,0.00041095,30]
[378745375,1754999454871,-400.0,0.00041095,30]
[378745376,1754999454880,-400.0,0.00041095,30]
[378745377,1754999454889,-400.0,0.00041095,30]
[378745378,1754999454898,-400.0,0.00041095,30]
[378745379,1754999454907,-400.0,0.00041095,30]
[378745380,1754999454916,-400.0,0.00041095,30]
[378745381,1754999454926,-400.0,0.00041095,30]
[378745382,1754999454935,-407.02407518,0.00041095,30]
[378745383,1754999454944,-400.0,0.00041095,14]
[378745384,1754999454954,-400.0,0.00041095,30]
[378745385,1754999454963,-400.0,0.00041095,30]
[378745386,1754999454973,-625.32,0.00041095,30]
[378745387,1754999454982,-505.42,0.00041095,30]
[378745388,1754999454992,-400.0,0.00041095,30]
[378745389,1754999455001,-400.73871756,0.00041095,5]
[378745390,1754999455011,-467.97,0.00041095,30]
[378745391,1754999455020,-400.0,0.00041095,30]
[378745392,1754999455030,-400.0,0.00041095,30]
[378745393,1754999455039,-400.0,0.00041095,30]
[378745394,1754999455049,-400.0,0.00041095,30]
[378745395,1754999455058,-400.0,0.00041095,30]
[378745396,1754999455068,-455.38,0.00041095,30]
[378745397,1754999455077,-2631.02,0.00041095,30]
[378745398,1754999455087,-400.0,0.00041095,30]
[378745399,1754999455097,-400.0,0.00041095,30]
[378745400,1754999455106,-400.0,0.00041095,30]
[378745401,1754999455116,-561.57,0.00041095,30]
[378745402,1754999455126,-487.61,0.00041095,30]
[378745403,1754999455135,-400.0,0.00041095,30]
[378745404,1754999455145,-400.0,0.00041095,30]
[378745405,1754999455154,-402.89136878,0.00041095,30]
[378745406,1754999455164,-400.0,0.00041095,30]
[378745407,1754999455173,-400.0,0.00041095,30]
[378745408,1754999455183,-400.0,0.00041095,30]
[378745409,1754999455192,-400.0,0.00041095,30]
[378745410,1754999455202,-400.0,0.00041095,30]
[378745411,1754999455211,-400.0,0.00041095,30]
[378745412,1754999455220,-500.0,0.00041095,30]
[378745413,1754999455230,-500.0,0.00041095,30]
[378745414,1754999455239,-400.0,0.00041095,30]
[378745415,1754999455248,-500.0,0.00041095,30]
[378745416,1754999455257,-400.0,0.00041095,30]
[378745417,1754999455266,-500.0,0.00041095,30]
[378745418,1754999455276,-400.0,0.00041095,30]
[378745419,1754999455288,-500.0,0.00041095,30]
[378745420,1754999455297,-400.0,0.00041095,30]
[378745421,1754999455306,-500.0,0.00041095,30]
[378745422,1754999455315,-400.0,0.00041095,30]
[378745423,1754999455324,-500.0,0.00041095,30]
[378745424,1754999455334,-500.0,0.00041095,30]
[378745425,1754999455343,-400.0,0.00041095,30]
[378745426,1754999455352,-400.0,0.00041095,30]
[378745427,1754999455361,-1241.51,0.00041095,30]
[378745428,1754999455371,-400.0,0.00041095,30]
[378745429,1754999455380,-400.0,0.00041095,30]
[378745430,1754999455389,-400.0,0.00041095,30]
[378745431,1754999455398,-400.0,0.00041095,30]
[378745432,1754999455408,-400.0,0.00041095,30]
[378745433,1754999455417,-2500.37,0.00041095,30]
[378745434,1754999455426,-400.0,0.00041095,30]
[378745435,1754999455435,-2500.37,0.00041095,30]
[378745436,1754999455444,-2500.37,0.00041095,30]
[378745437,1754999455454,-2500.37,0.00041095,30]
[378745438,1754999455463,-2500.37,0.00041095,30]
[378745439,1754999455472,-2500.37,0.00041095,30]
[378745440,1754999455481,-2500.37,0.00041095,30]
[378745441,1754999455490,-2500.37,0.00041095,30]
[378745442,1754999455499,-400.0,0.00041095,30]
[378745443,1754999455509,-2500.37,0.00041095,30]
[378745444,1754999455518,-2500.37,0.00041095,30]
[378745445,1754999455527,-400.0,0.00041095,30]
[378745446,1754999455536,-401.52030398,0.00041095,30]
[378745447,1754999455545,-400.0,0.00041095,30]
[378745448,1754999455554,-413.68,0.00041095,30]
[378745449,1754999455563,-400.0,0.00041095,30]
[378745450,1754999455573,-1327.13,0.00041095,30]
[378745451,1754999455582,-207.48329574,0.00041095,30]
[378745452,1754999455591,-300.0,0.00041095,2]
[378745453,1754999455600,-1000.0,0.00041095,30]
[378745454,1754999455609,-1512.52,0.00041095,30]
[378745455,1754999455618,-400.0,0.00041095,30]
[378745456,1754999455627,-400.0,0.00041095,30]
[378745457,1754999455637,-400.0,0.00041095,30]
[378745458,1754999455647,-400.0,0.00041095,3]
[378745459,1754999455657,-400.0,0.00041095,30]
[378745460,1754999455666,-400.0,0.00041095,30]
[378745461,1754999455675,-400.0,0.00041095,30]
[378745462,1754999455684,-400.0,0.00041095,30]
[378745463,1754999455693,-400.0,0.00041095,30]
[378745464,1754999455702,-400.0,0.00041095,30]
[378745465,1754999455711,-400.0,0.00041095,30]
[378745466,1754999455720,-400.0,0.00041095,30]
[378745467,1754999455730,-400.0,0.00041095,30]
[378745468,1754999455740,-400.0,0.00041095,30]
[378745469,1754999455750,-400.0,0.00041095,30]
[378745470,1754999455759,-400.0,0.00041095,30]
[378745471,1754999455768,-400.0,0.00041095,30]
[378745472,1754999455777,-400.0,0.00041095,30]
[378745473,1754999455786,-400.0,0.00041095,30]
[378745475,1754999455796,-400.0,0.00041095,30]
[378745477,1754999455805,-400.0,0.00041095,30]
[378745479,1754999455815,-400.0,0.00041095,30]
[378745481,1754999455824,-400.0,0.00041095,30]
[378745483,1754999455834,-429.42,0.00041095,30]
[378745485,1754999455843,-459.31,0.00041095,30]
[378745487,1754999455853,-400.0,0.00041095,30]
[378745489,1754999455863,-400.0,0.00041095,30]
[378745491,1754999455872,-400.0,0.00041095,30]
[378745493,1754999455881,-400.0,0.00041095,30]
[378745495,1754999455891,-400.0,0.00041095,30]
[378745497,1754999455900,-400.0,0.00041095,30]
[378745499,1754999455909,-894.55,0.00041095,30]
[378745501,1754999455918,-400.0,0.00041095,30]
[378745503,1754999455927,-400.0,0.00041095,30]
[378745505,1754999455936,-400.0,0.00041095,30]
[378745507,1754999455946,-400.0,0.00041095,30]
[378745509,1754999455956,-400.0,0.00041095,30]
[378745511,1754999455965,-153.126982,0.00041095,30]
[378745512,1754999455975,-400.0,0.00041095,30]
[378745515,1754999455985,-500.0,0.00041095,2]
[378745517,1754999455995,-400.0,0.00041095,30]
[378745518,1754999456004,-524.45314218,0.00041095,2]
[378745520,1754999456014,-400.0,0.00041095,30]
[378745522,1754999456023,-400.0,0.00041095,30]
[378745524,1754999456033,-400.0,0.00041095,30]
[378745526,1754999456042,-400.0,0.00041095,30]
[378745528,1754999456051,-400.0,0.00041095,30]
[378745531,1754999456062,-400.0,0.00041095,30]
[378745533,1754999456071,-400.0,0.00041095,30]
[378745535,1754999456081,-400.0,0.00041095,30]
[378745537,1754999456091,-617.95795684,0.00041095,30]
[378745543,1754999456139,-12.85789916,0.00041095,30]
[378745545,1754999456150,-400.0,0.00041095,30]
[378745547,1754999456160,-400.0,0.00041095,30]
[378745549,1754999456170,-1239.140521,0.00041095,30]
[378745551,1754999456179,-285.2515722,0.00041095,30]
[378745554,1754999456197,-114.7484278,0.00041095,30]
[378745556,1754999456207,-400.0,0.00041095,30]
[378745558,1754999456217,-259.65766112,0.00041095,30]
[378745560,1754999456233,-140.34233888,0.00041095,30]
[378745562,1754999456242,-400.0,0.00041095,30]
[378745564,1754999456252,-400.0,0.00041095,30]
[378745566,1754999456261,-400.0,0.00041095,30]
[378745568,1754999456271,-400.0,0.00041095,30]
[378745570,1754999456282,-400.0,0.00041095,30]
[378745572,1754999456293,-400.0,0.00041095,30]
[378745574,1754999456303,-400.0,0.00041095,30]
[378745576,1754999456312,-576.25,0.00041095,30]
[378745579,1754999456323,-400.0,0.00041095,30]
[378745580,1754999456332,-400.0,0.00041095,2]
[378745583,1754999456342,-400.0,0.00041095,30]
[378745585,1754999456351,-400.0,0.00041095,30]
[378745586,1754999456363,-666.0,0.00041095,120]
[378745588,1754999456373,-666.0,0.00041095,120]
[378745590,1754999456382,-666.0,0.00041095,120]
[378745592,1754999456392,-666.0,0.00041095,120]
[378745594,1754999456401,-437.18,0.00041095,120]
[378745596,1754999456410,-400.0,0.00041095,30]
[378745599,1754999456419,-135.50815109,0.00041095,30]
[378745602,1754999456447,-364.49184891,0.00041095,30]
[378745605,1754999456462,-400.0,0.00041095,30]
[378745607,1754999456472,-179.35119502,0.00041095,30]
[378745609,1754999456482,-400.0,0.00041095,30]
[378745611,1754999456491,-400.0,0.00041095,30]
[378745613,1754999456501,-400.0,0.00041095,30]
[378745615,1754999456511,-500.0,0.00041095,30]
[378745617,1754999456521,-400.0,0.00041095,30]
[378745619,1754999456530,-500.0,0.00041095,30]
[378745621,1754999456539,-500.0,0.00041095,30]
[378745623,1754999456548,-500.0,0.00041095,30]
[378745625,1754999456558,-519.33,0.00041095,30]
[378745627,1754999456567,-504.08214371,0.00041095,30]
[378745629,1754999456577,-400.0,0.00041095,2]
[378745630,1754999456592,-500.0,0.00041096,10]
[378745632,1754999456607,-872.05462845,0.00041096,2]
[378745635,1754999456638,-331.64537155,0.00041096,2]
[378745637,1754999456648,-102.80980098,0.00041096,2]
[378745639,1754999456659,-62.95019902,0.00041096,2]
[378745641,1754999456669,-718.96,0.00041096,2]
[378745643,1754999456678,-165.76,0.00041096,2]
[378745645,1754999456688,-167.46,0.000411,14]
[378745647,1754999456697,-444.0,0.000411,2]
[378745649,1754999456707,-600.0,0.000411,2]
[378745651,1754999456717,-150.0,0.00041148,2]
[378745653,1754999456726,-361.58,0.00041205,30]
[378745655,1754999456735,-727.47,0.00041224,30]
[378745657,1754999456745,-184.76,0.00041227,30]
[378745659,1754999456754,-500.0,0.00041227,30]
[378745661,1754999456763,-727.47,0.00041238,30]
[378745663,1754999456773,-150.0,0.00041246,2]
[378745665,1754999456783,-180.29266792,0.00041251,2]
[378745667,1754999456792,-289.62721364,0.00041251,2]
[378745670,1754999456803,-152.82993288,0.00041269,120]
[378745672,1754999456812,-2222.22,0.0004127,60]
[378745674,1754999456821,-1776.0,0.0004131,3]
[378745690,1754999456956,-151.0,0.00041316,3]
[378745692,1754999456979,-156.587,0.00041316,3]
[378745694,1754999456988,-172.38575266,0.00041316,3]
[378745696,1754999456998,-500.0,0.00041324,30]
[378745699,1754999457008,-727.47,0.00041324,30]
[378745701,1754999457018,-1000.0,0.00041335,30]
[378745703,1754999457027,-302.306292,0.00041335,30]
[378745705,1754999457036,-302.306292,0.00041335,30]
[378745707,1754999457046,-151.0,0.00041335,14]
[378745709,1754999457055,-151.0,0.00041335,14]
[378745711,1754999457064,-727.47,0.00041335,30]
[378745713,1754999457073,-1000.0,0.00041335,14]
[378745715,1754999457082,-270.20149842,0.00041335,14]
[378745717,1754999457092,-1000.0,0.00041335,14]
[378745719,1754999457103,-1000.0,0.00041335,14]
[378745721,1754999457113,-923.76829835,0.00041335,14]
[378745723,1754999457122,-500.0,0.00041335,14]
[378745725,1754999457133,-573.61895983,0.00041335,14]
[378745727,1754999457142,-424.57021141,0.00041335,14]
[378745729,1754999457152,-275.08568987,0.00041335,14]
[378745731,1754999457162,-151.0,0.00041335,14]
[378745733,1754999457171,-263.99876593,0.00041335,14]
[378745735,1754999457180,-328.05493479,0.00041335,14]
[378745737,1754999457190,-500.0,0.00041335,14]
[378745738,1754999457199,-466.94242154,0.00041335,14]
[378745740,1754999457208,-155.1162535,0.00041335,14]
[378745742,1754999457218,-2347.87260389,0.00041335,14]
[378745744,1754999457228,-2434.74389024,0.00041335,14]
[378745746,1754999457237,-981.07161553,0.00041335,14]
[378745748,1754999457247,-2524.82941417,0.00041335,14]
[378745750,1754999457256,-2618.2481025,0.00041335,14]
[378745752,1754999457266,-2715.12328229,0.00041335,14]
[378745754,1754999457275,-2815.58284374,0.00041335,14]
[378745756,1754999457288,-2919.75940895,0.00041335,14]
[378745758,1754999457297,-500.0,0.00041335,14]
[378745760,1754999457306,-3027.79050709,0.00041335,14]
[378745762,1754999457315,-1368.99723016,0.00041335,14]
[378745764,1754999457325,-192.76297195,0.00041335,14]
[378745766,1754999457334,-500.0,0.00041335,14]
[378745769,1754999457343,-500.0,0.00041335,14]
[378745770,1754999457352,-500.0,0.00041335,14]
[378745772,1754999457361,-248.71531821,0.00041335,14]
[378745774,1754999457372,-500.0,0.00041335,14]
[378745776,1754999457381,-257.91778498,0.00041335,14]
[378745778,1754999457390,-500.0,0.00041335,14]
[378745780,1754999457399,-267.46074303,0.00041335,14]
[378745782,1754999457408,-500.0,0.00041335,14]
[378745784,1754999457418,-284.90336512,0.00041335,14]
[378745786,1754999457427,-500.0,0.00041335,14]
[378745788,1754999457437,-500.0,0.00041335,14]
[378745791,1754999457449,-500.0,0.00041335,14]
[378745793,1754999457459,-1000.0,0.00041335,14]
[378745795,1754999457471,-500.0,0.00041335,14]
[378745797,1754999457487,-1000.0,0.00041335,14]
[378745799,1754999457499,-500.0,0.00041335,14]
[378745801,1754999457512,-1000.0,0.00041335,14]
[378745803,1754999457522,-500.0,0.00041335,14]
[378745805,1754999457531,-500.0,0.00041335,14]
[378745807,1754999457541,-460.33833994,0.00041335,14]
[378745809,1754999457550,-486.61122081,0.00041335,14]
[378745810,1754999457559,-441.59634678,0.00041335,14]
[378745812,1754999457568,-500.0,0.00041335,30]
[378745814,1754999457577,-206.06507749,0.00041335,14]
[378745816,1754999457587,-2500.37,0.00041335,30]
[378745818,1754999457596,-250.0,0.00041335,14]
[378745820,1754999457606,-250.0,0.00041335,14]
[378745823,1754999457615,-250.0,0.00041335,14]
[378745824,1754999457625,-250.0,0.00041335,14]
[378745826,1754999457634,-250.0,0.00041335,14]
[378745828,1754999457644,-250.0,0.00041335,14]
[378745830,1754999457654,-250.0,0.00041335,14]
[378745832,1754999457663,-316.76634194,0.00041335,14]
[378745834,1754999457673,-150.0,0.00041345,2]
[378745837,1754999457683,-1000.0,0.00041348,30]
[378745839,1754999457692,-1000.0,0.00041348,30]
[378745841,1754999457702,-236.68753492,0.00041348,30]
[378745843,1754999457711,-150.0,0.00041352,2]
[378745845,1754999457720,-150.0,0.00041353,2]
[378745847,1754999457729,-1000.0,0.00041358,30]
[378745849,1754999457739,-1000.0,0.00041368,30]
[378745851,1754999457748,-500.0,0.00041368,30]
[378745853,1754999457758,-727.47,0.00041368,30]
[378745855,1754999457768,-500.0,0.00041368,30]
[378745857,1754999457778,-2500.37,0.00041368,30]
[378745859,1754999457787,-402.10011829,0.00041369,30]
[378745860,1754999457797,-293.08788475,0.00041369,30]
[378745862,1754999457806,-416.488226,0.00041369,30]
[378745864,1754999457815,-400.0,0.00041369,30]
[378745867,1754999457825,-400.0,0.00041369,30]
[378745869,1754999457834,-400.0,0.00041369,30]
[378745871,1754999457843,-705.3,0.00041369,30]
[378745872,1754999457853,-400.0,0.00041369,30]
[378745874,1754999457862,-400.0,0.00041369,30]
[378745876,1754999457871,-405.24140689,0.00041369,30]
[378745878,1754999457881,-400.0,0.00041369,30]
[378745880,1754999457890,-400.0,0.00041369,30]
[378745882,1754999457899,-400.0,0.00041369,30]
[378745884,1754999457908,-400.0,0.00041369,30]
[378745886,1754999457918,-402.85442556,0.00041369,30]
[378745888,1754999457927,-400.0,0.00041369,30]
[378745891,1754999457937,-400.0,0.00041369,30]
[378745893,1754999457946,-483.26789636,0.00041369,30]
[378745895,1754999457956,-400.0,0.00041369,30]
[378745897,1754999457965,-406.33268054,0.00041369,30]
[378745899,1754999457975,-407.31829864,0.00041369,30]
[378745900,1754999457984,-400.0,0.00041369,30]